fUST/lending_fUST_20250719
["ID","MTS","AMOUNT","RATE_DAILY","PERIOD"]
[373227866,1752916261101,-2419.91,0.00019871,2]
[373227867,1752916261110,-460.0,0.00019871,2]
[373227868,1752916261121,-460.0,0.00019871,2]
[373227869,1752916261130,-1223.81,0.00019871,2]
[373227870,1752916261141,-1354.34,0.00019871,2]
[373227871,1752916261151,-460.0,0.00019871,2]
[373227872,1752916261161,-460.0,0.00019871,2]
[373227873,1752916261171,-551.44,0.00019871,2]
[373227874,1752916261182,-1938.71,0.00019871,2]
[373227875,1752916261192,-472.36,0.00019871,2]
[373227876,1752916261201,-460.0,0.00019871,2]
[373227877,1752916261211,-744.37,0.00019871,2]
[373227878,1752916261225,-151.0,0.00019872,2]
[373227879,1752916261234,-460.0,0.00019872,2]
[373227880,1752916261244,-460.0,0.00019872,2]
[373227881,1752916261253,-460.0,0.00019872,2]
[373227882,1752916261262,-460.0,0.00019872,2]
[373227883,1752916261272,-514.48,0.00019872,2]
[373227884,1752916261283,-151.0,0.00019872,2]
[373227885,1752916261292,-151.0,0.00019872,2]
[373227886,1752916261302,-460.0,0.00019872,2]
[373227887,1752916261312,-460.0,0.00019872,2]
[373227888,1752916261321,-3376.62,0.00019872,2]
[373227889,1752916261331,-512.86,0.00019872,2]
[373227890,1752916261340,-935.98,0.00019872,2]
[373227891,1752916261350,-151.0,0.00019872,2]
[373227892,1752916261359,-460.0,0.00019872,2]
[373227893,1752916261369,-460.0,0.00019872,2]
[373227894,1752916261380,-1358.61,0.00019872,2]
[373227895,1752916261390,-460.0,0.00019873,2]
[373227896,1752916261400,-460.0,0.00019873,2]
[373227897,1752916261409,-820.72,0.00019873,2]
[373227898,1752916261418,-460.0,0.00019873,2]
[373227899,1752916261428,-1223.5,0.00019873,2]
[373227900,1752916261439,-1245.9,0.00019873,2]
[373227901,1752916261449,-460.0,0.00019873,2]
[373227902,1752916261458,-665.09,0.00019873,2]
[373227903,1752916261468,-460.0,0.00019873,2]
[373227904,1752916261478,-769.32,0.00019873,2]
[373227905,1752916261488,-1239.35,0.00019873,2]
[373227906,1752916261498,-151.0,0.00019873,2]
[373227907,1752916261507,-460.0,0.00019873,2]
[373227908,1752916261518,-460.0,0.00019873,2]
[373227909,1752916261527,-460.0,0.00019873,2]
[373227910,1752916261536,-1133.93,0.00019873,2]
[373227911,1752916261546,-460.0,0.00019873,2]
[373227912,1752916261556,-460.0,0.00019873,2]
[373227913,1752916261565,-151.0,0.00019874,2]
[373227914,1752916261575,-198.453047,0.00019874,2]
[373227915,1752916261585,-151.0,0.00019874,2]
[373227916,1752916261594,-151.0,0.00019874,2]
[373227917,1752916261603,-151.0,0.00019874,2]
[373227918,1752916261613,-151.0,0.00019874,2]
[373227919,1752916261622,-234.571149,0.00019874,2]
[373227920,1752916261631,-460.0,0.00019874,2]
[373227921,1752916261641,-151.0,0.00019874,2]
[373227922,1752916261650,-151.0,0.00019875,2]
[373227923,1752916261660,-235.294537,0.00019875,2]
[373227924,1752916261670,-151.0,0.00019875,2]
[373227925,1752916261680,-151.0,0.00019875,2]
[373227926,1752916261690,-418.298156,0.00019875,2]
[373227927,1752916261699,-418.298156,0.00019875,2]
[373227928,1752916261709,-151.0,0.00019876,2]
[373227929,1752916261720,-151.0,0.00019877,2]
[373227930,1752916261729,-503.36231107,0.0001989,2]
[373227931,1752916261739,-235.0998931,0.0001989,2]
[373227932,1752916261748,-5000.0,0.00019896,2]
[373227933,1752916261758,-6000.0,0.00019914,2]
[373227934,1752916261767,-1500.0,0.00019917,2]
[373227935,1752916261779,-800.0,0.00019919,2]
[373227936,1752916261788,-1000.0,0.00019921,2]
[373227937,1752916261798,-1000.0,0.00019921,2]
[373227938,1752916261809,-1000.0,0.00019921,2]
[373227939,1752916261818,-1000.0,0.00019921,2]
[373227940,1752916261828,-1003.07543874,0.00019921,2]
[373227941,1752916261838,-1000.0,0.00019921,2]
[373227942,1752916261849,-1000.0,0.00019921,2]
[373227943,1752916261859,-1001.24102348,0.00019921,2]
[373227944,1752916261868,-1000.0,0.00019921,2]
[373227945,1752916261879,-1000.0,0.00019921,2]
[373227946,1752916261890,-1000.0,0.00019921,2]
[373227947,1752916261900,-500.0,0.00019921,2]
[373227948,1752916261910,-1000.0,0.00019921,2]
[373227949,1752916261920,-1000.0,0.00019921,2]
[373227950,1752916261930,-1000.0,0.00019921,2]
[373227951,1752916261939,-1000.0,0.00019921,2]
[373227952,1752916261949,-1002.91265376,0.00019921,2]
[373227953,1752916261959,-502.49654377,0.00019921,2]
[373227954,1752916261970,-1000.0,0.00019921,2]
[373227955,1752916261980,-1006.13422881,0.00019921,2]
[373227956,1752916261990,-1500.0,0.00019955,2]
[373227957,1752916262001,-4000.0,0.00019989,2]
[373227958,1752916262011,-152.0,0.0002,2]
[373227959,1752916262021,-173.523,0.0002,2]
[373227960,1752916262031,-300.36537245,0.0002,2]
[373227961,1752916262043,-197.33649124,0.0002,2]
[373227962,1752916262052,-300.0,0.0002,2]
[373227963,1752916262062,-4000.0,0.0002,4]
[373227964,1752916262072,-303.28808607,0.00020034,4]
[373227965,1752916262082,-217.40428983,0.00020065,2]
[373227966,1752916262094,-25000.0,0.00020065,2]
[373227967,1752916262105,-151.0,0.00020065,2]
[373227968,1752916262114,-151.0,0.00020065,2]
[373227969,1752916262123,-151.0,0.00020065,2]
[373227970,1752916262134,-151.0,0.00020065,2]
[373227971,1752916262145,-285.019285,0.00020065,2]
[373227972,1752916262155,-285.019285,0.00020065,2]
[373227973,1752916262165,-151.0,0.00020065,2]
[373227974,1752916262175,-1210.502323,0.00020065,2]
[373227975,1752916262186,-6108.5604731,0.00020072,2]
[373227976,1752916262196,-1500.0,0.00020117,2]
[373227977,1752916262208,-5133.69,0.00020144,2]
[373227978,1752916262219,-2916.31,0.00020145,2]
[373227979,1752916262231,-2071.08,0.00020145,2]
[373227980,1752916262240,-677.36,0.00020145,2]
[373227981,1752916262251,-460.0,0.00020145,2]
[373227982,1752916262261,-2419.91,0.00020145,2]
[373227983,1752916262273,-417.16026138,0.00020145,2]
[373227984,1752916262284,-460.0,0.00020145,2]
[373227985,1752916262295,-1223.81,0.00020145,2]
[373227986,1752916262306,-1354.34,0.00020145,2]
[373227987,1752916262318,-460.0,0.00020145,2]
[373227988,1752916262329,-460.0,0.00020145,2]
[373227989,1752916262340,-551.44,0.00020145,2]
[373227990,1752916262351,-1938.71,0.00020145,2]
[373227991,1752916262361,-472.36,0.00020145,2]
[373227992,1752916262371,-460.0,0.00020145,2]
[373227993,1752916262381,-744.37,0.00020145,2]
[373227994,1752916262392,-208.0,0.00020146,2]
[373227995,1752916262402,-460.0,0.00020146,2]
[373227996,1752916262411,-460.0,0.00020146,2]
[373227997,1752916262423,-460.0,0.00020146,2]
[373227998,1752916262433,-460.0,0.00020146,2]
[373227999,1752916262443,-514.48,0.00020146,2]
[373228000,1752916262454,-460.0,0.00020146,2]
[373228001,1752916262464,-522.10297026,0.00020146,2]
[373228002,1752916262474,-3376.62,0.00020146,2]
[373228003,1752916262485,-512.86,0.00020146,2]
[373228004,1752916262495,-935.98,0.00020146,2]
[373228005,1752916262505,-460.0,0.00020146,2]
[373228006,1752916262514,-460.0,0.00020146,2]
[373228007,1752916262524,-1358.61,0.00020146,2]
[373228008,1752916262534,-151.0,0.00020147,2]
[373228009,1752916262544,-415.150377,0.00020147,2]
[373228010,1752916262554,-460.0,0.00020147,2]
[373228011,1752916262564,-415.150377,0.00020147,2]
[373228012,1752916262575,-151.0,0.00020147,2]
[373228013,1752916262585,-460.0,0.00020147,2]
[373228014,1752916262595,-820.72,0.00020147,2]
[373228015,1752916262605,-229.61170609,0.00020147,2]
[373228016,1752916262615,-151.0,0.00020147,2]
[373228017,1752916262624,-293.036372,0.00020147,2]
[373228018,1752916262634,-293.036372,0.00020147,2]
[373228019,1752916262643,-345.030276,0.00020147,2]
[373228020,1752916262653,-345.030276,0.00020147,2]
[373228021,1752916262663,-1223.5,0.00020147,2]
[373228022,1752916262673,-1245.9,0.00020147,2]
[373228023,1752916262683,-168.45,0.00020147,2]
[373228024,1752916262693,-665.09,0.00020147,2]
[373228025,1752916262703,-465.92,0.00020147,2]
[373228026,1752916262713,-769.32,0.00020147,2]
[373228027,1752916262722,-1239.35,0.00020147,2]
[373228028,1752916262732,-460.0,0.00020147,2]
[373228029,1752916262742,-460.0,0.00020147,2]
[373228030,1752916262752,-460.0,0.00020147,2]
[373228031,1752916262762,-1133.93,0.00020147,2]
[373228032,1752916262771,-460.0,0.00020147,2]
[373228033,1752916262781,-460.0,0.00020148,2]
[373228034,1752916262790,-151.0,0.00020148,2]
[373228035,1752916262800,-151.0,0.00020148,2]
[373228036,1752916262809,-151.0,0.00020148,2]
[373228037,1752916262818,-151.0,0.00020148,2]
[373228038,1752916262828,-151.0,0.00020148,2]
[373228039,1752916262838,-208.0,0.00020153,2]
[373228040,1752916262847,-208.0,0.00020172,2]
[373228041,1752916262857,-336.361165,0.00020187,2]
[373228042,1752916262866,-208.0,0.00020212,2]
[373228043,1752916262875,-208.0,0.00020231,2]
[373228044,1752916262885,-800.0,0.00020254,2]
[373228045,1752916262894,-800.0,0.00020259,2]
[373228046,1752916262904,-208.0,0.00020275,2]
[373228047,1752916262914,-438.09872396,0.00020292,2]
[373228048,1752916262924,-641.49978633,0.00020292,2]
[373228049,1752916262934,-1000.0,0.00020292,2]
[373228050,1752916262944,-1000.0,0.00020292,2]
[373228051,1752916262954,-1000.0,0.00020292,2]
[373228052,1752916262964,-1000.0,0.00020292,2]
[373228053,1752916262974,-1000.0,0.00020292,2]
[373228054,1752916262984,-1000.0,0.00020292,2]
[373228055,1752916262993,-1000.0,0.00020292,2]
[373228056,1752916263003,-1000.0,0.00020292,2]
[373228057,1752916263013,-502.91141735,0.00020292,2]
[373228058,1752916263023,-1000.0,0.00020292,2]
[373228059,1752916263033,-6108.5604731,0.00020314,3]
[373228060,1752916263043,-813.218838,0.00020324,8]
[373228061,1752916263053,-218.063064,0.00020324,2]
[373228062,1752916263063,-218.063064,0.00020324,2]
[373228063,1752916263072,-151.0,0.00020324,2]
[373228064,1752916263082,-151.0,0.00020324,2]
[373228065,1752916263186,-151.0,0.00020324,2]
[373228066,1752916263197,-151.0,0.00020324,2]
[373228067,1752916263206,-208.0,0.0002033,2]
[373228068,1752916263216,-151.0,0.0002033,2]
[373228069,1752916263230,-151.0,0.0002033,2]
[373228070,1752916263240,-151.0,0.0002033,2]
[373228071,1752916263249,-151.0,0.0002033,2]
[373228072,1752916263259,-208.0,0.00020346,2]
[373228073,1752916263270,-6730.03034245,0.00020366,2]
[373228074,1752916263280,-151.0,0.00020383,2]
[373228075,1752916263291,-151.0,0.00020383,2]
[373228076,1752916263302,-418.298156,0.00020383,2]
[373228077,1752916263311,-418.298156,0.00020383,2]
[373228078,1752916263321,-7299.98262913,0.00020386,2]
[373228079,1752916263332,-660.0,0.00020396,2]
[373228080,1752916263342,-476.34170116,0.000204,3]
[373228081,1752916263354,-214.52603969,0.000204,3]
[373228082,1752916263363,-160.0,0.000204,3]
[373228083,1752916263374,-12612.80205064,0.000204,3]
[373228084,1752916263385,-5133.69,0.00020418,2]
[373228085,1752916263395,-2916.31,0.00020419,2]
[373228086,1752916263405,-2071.08,0.00020419,2]
[373228087,1752916263416,-677.36,0.00020419,2]
[373228088,1752916263426,-460.0,0.00020419,2]
[373228089,1752916263437,-2419.91,0.00020419,2]
[373228090,1752916263447,-460.0,0.00020419,2]
[373228091,1752916263458,-1223.81,0.00020419,2]
[373228092,1752916263469,-1354.34,0.00020419,2]
[373228093,1752916263480,-460.0,0.00020419,2]
[373228094,1752916263491,-460.0,0.00020419,2]
[373228095,1752916263500,-551.44,0.00020419,2]
[373228096,1752916263511,-1938.71,0.00020419,2]
[373228097,1752916263521,-472.36,0.00020419,2]
[373228098,1752916263530,-460.0,0.00020419,2]
[373228099,1752916263541,-744.37,0.00020419,2]
[373228100,1752916263551,-208.0,0.0002042,2]
[373228101,1752916263561,-460.0,0.0002042,2]
[373228102,1752916263571,-460.0,0.0002042,2]
[373228103,1752916263580,-520.79542031,0.0002042,2]
[373228104,1752916263590,-508.05,0.0002042,2]
[373228105,1752916263601,-514.48,0.0002042,2]
[373228106,1752916263611,-460.0,0.0002042,2]
[373228107,1752916263621,-3376.62,0.0002042,2]
[373228108,1752916263632,-512.86,0.0002042,2]
[373228109,1752916263642,-935.98,0.0002042,2]
[373228110,1752916263651,-460.0,0.0002042,2]
[373228111,1752916263661,-1358.61,0.0002042,2]
[373228112,1752916263671,-460.0,0.00020421,2]
[373228113,1752916263682,-492.14,0.00020421,2]
[373228114,1752916263692,-820.72,0.00020421,2]
[373228115,1752916263702,-1223.5,0.00020421,2]
[373228116,1752916263712,-1245.9,0.00020421,2]
[373228117,1752916263722,-665.09,0.00020421,2]
[373228118,1752916263733,-769.32,0.00020421,2]
[373228119,1752916263743,-1239.35,0.00020421,2]
[373228120,1752916263752,-460.0,0.00020421,2]
[373228121,1752916263764,-460.0,0.00020421,2]
[373228122,1752916263773,-460.0,0.00020421,2]
[373228123,1752916263783,-1133.93,0.00020421,2]
[373228124,1752916263792,-460.0,0.00020421,2]
[373228125,1752916263802,-151.0,0.00020422,2]
[373228126,1752916263811,-171.19584,0.00020422,2]
[373228127,1752916263820,-171.19584,0.00020422,2]
[373228128,1752916263831,-460.0,0.00020422,2]
[373228129,1752916263841,-151.0,0.00020424,2]
[373228130,1752916263852,-151.0,0.00020425,2]
[373228131,1752916263862,-151.0,0.00020443,2]
[373228132,1752916263871,-151.0,0.00020443,2]
[373228133,1752916263881,-220.226394,0.00020443,2]
[373228134,1752916263891,-151.0,0.00020443,2]
[373228135,1752916263901,-151.0,0.00020443,2]
[373228136,1752916263910,-151.0,0.00020443,2]
[373228137,1752916263920,-1182.08849996,0.00020465,2]
[373228138,1752916263929,-153.0,0.00020466,2]
[373228139,1752916263939,-153.0,0.00020466,2]
[373228140,1752916263948,-153.0,0.00020466,2]
[373228141,1752916263958,-693.2450441,0.00020468,2]
[373228142,1752916263969,-1170.8313905,0.00020468,2]
[373228143,1752916263979,-1500.0,0.00020468,2]
[373228144,1752916263989,-1500.0,0.00020468,2]
[373228145,1752916264000,-1004.74859818,0.00020468,2]
[373228146,1752916264010,-1500.0,0.00020468,2]
[373228147,1752916264019,-1500.0,0.00020468,2]
[373228148,1752916264029,-1545.94915898,0.00020468,2]
[373228149,1752916264039,-1500.0,0.00020468,2]
[373228150,1752916264049,-1500.0,0.00020468,2]
[373228151,1752916264059,-1500.0,0.00020468,2]
[373228152,1752916264069,-993.83870128,0.00020468,2]
[373228153,1752916264079,-1500.0,0.00020468,2]
[373228154,1752916264088,-208.0,0.00020474,2]
[373228155,1752916264099,-900.0,0.00020485,2]
[373228156,1752916264109,-672.99463546,0.00020503,2]
[373228157,1752916264506,-460.0,0.00016584,2]
[373228158,1752916264517,-460.0,0.00016584,2]
[373228159,1752916264526,-460.0,0.00016584,2]
[373228160,1752916264536,-460.0,0.00016584,2]
[373228161,1752916264545,-460.0,0.00016585,2]
[373228162,1752916264556,-269.4972036,0.00016858,2]
[373228163,1752916264565,-460.0,0.00016859,2]
[373228164,1752916264575,-151.0,0.00017133,2]
[373228165,1752916264585,-460.0,0.00017133,2]
[373228166,1752916264595,-151.0,0.00017582,2]
[373228167,1752916264608,-460.0,0.00020147,2]
[373228168,1752916264618,-460.0,0.00020421,2]
[373228169,1752916264628,-827.00536454,0.00020503,2]
[373228170,1752916264637,-800.0,0.00020513,2]
[373228171,1752916264647,-500.0,0.00020521,2]
[373228172,1752916264656,-208.0,0.00020526,2]
[373228173,1752916264665,-337.18163513,0.00020539,2]
[373228174,1752916264675,-500.0,0.00020547,2]
[373228175,1752916264685,-6108.5604731,0.00020555,3]
[373228176,1752916264694,-800.0,0.00020563,2]
[373228177,1752916264704,-800.0,0.00020569,2]
[373228178,1752916264714,-166.09755219,0.000206,5]
[373228179,1752916264723,-161.0,0.000206,5]
[373228180,1752916264733,-161.0,0.000206,4]
[373228181,1752916264744,-161.0,0.000206,4]
[373228182,1752916264753,-161.0,0.000206,4]
[373228183,1752916264762,-800.0,0.00020609,2]
[373228184,1752916264772,-18762.58465275,0.00020613,2]
[373228185,1752916357865,182.80754537,0.00016483,2]
[373228186,1752916478325,182.80754537,0.00016483,2]
[373228193,1752916817275,5000.0,0.0001652,2]
[373228194,1752916827904,150.0,0.00014874,2]
[373228195,1752916828080,150.0,0.00015582,2]
[373228196,1752916828207,53697.42293683,0.00016482,2]
[373228197,1752916828467,150.0,0.0001629,2]
[373228198,1752916833010,5000.0,0.0001652,2]
[373228199,1752916844468,388.1997588,0.00016479,2]
[373228200,1752916851196,5000.0,0.0001652,2]
[373228201,1752916867676,5000.0,0.0001652,2]
[373228203,1752916881931,419.571939,0.00013699,2]
[373228204,1752916883395,5000.0,0.0001652,2]
[373228205,1752916898585,5000.0,0.0001652,2]
[373228206,1752916913921,5000.0,0.0001652,2]
[373228208,1752916930556,5000.0,0.0001652,2]
[373228209,1752916939744,415.14627593,0.0001648,2]
[373228210,1752916950841,5000.0,0.0001652,2]
[373228211,1752916966350,5000.0,0.0001652,2]
[373228212,1752916969193,150.0,0.00014722,2]
[373228213,1752916970110,150.0,0.00015423,2]
[373228214,1752916981833,5000.0,0.0001652,2]
[373228215,1752916982370,231.0312964,0.00027397,120]
[373228216,1752916998914,5000.0,0.0001833,6]
[373228217,1752917014305,5000.0,0.0001833,6]
[373228218,1752917030548,5000.0,0.0001833,6]
[373228219,1752917046305,5000.0,0.0001652,2]
[373228220,1752917061664,5000.0,0.0001652,2]
[373228221,1752917077927,5000.0,0.0001652,2]
[373228222,1752917094097,5000.0,0.0001652,2]
[373228223,1752917103165,40000.0,0.000164,2]
[373228224,1752917111372,5000.0,0.0001652,2]
[373228225,1752917117177,24900.0,0.00015582,2]
[373228226,1752917126816,3632.19311148,0.0001652,2]
[373228227,1752917130243,363.2529915,0.0001648,2]
[373228228,1752917156714,155.70141047,0.00016118,2]
[373228229,1752917186601,708.110488,0.00015582,2]
[373228230,1752917225551,212.74672439,0.00016083,2]
[373228231,1752917257673,1470.71045204,0.00026,120]
[373228234,1752917315258,317.84636751,0.00016479,2]
[373228235,1752917326227,11771.87881056,0.0001,2]
[373228236,1752917389602,300.0,0.00027,120]
[373228238,1752917407953,10000.0,0.0001558,2]
[373228268,1752917432622,-460.0,0.00016577,2]
[373228269,1752917432633,-460.0,0.00016577,2]
[373228270,1752917432643,-458.59210166,0.00016577,2]
[373228272,1752917432652,-460.0,0.00016577,2]
[373228273,1752917432661,-300.0,0.00016577,2]
[373228275,1752917432671,-519.0,0.00016577,2]
[373228277,1752917432682,-460.0,0.00016577,2]
[373228278,1752917432692,-460.0,0.00016577,2]
[373228280,1752917432702,-460.0,0.00016577,2]
[373228281,1752917432712,-460.0,0.00016577,2]
[373228282,1752917432721,-175.43802794,0.00016577,2]
[373228283,1752917432731,-460.0,0.00016577,2]
[373228284,1752917432741,-460.0,0.00016577,2]
[373228285,1752917432751,-1200.0,0.00016578,2]
[373228286,1752917432761,-460.0,0.00016578,2]
[373228287,1752917432771,-4285.26,0.00016578,2]
[373228288,1752917432781,-460.0,0.00016578,2]
[373228289,1752917432791,-460.0,0.00016578,2]
[373228290,1752917432801,-1000.0,0.00016578,2]
[373228291,1752917432822,-462.54340869,0.00016578,2]
[373228292,1752917432833,-460.0,0.00016578,2]
[373228293,1752917432844,-460.0,0.00016578,2]
[373228294,1752917432854,-460.0,0.00016578,2]
[373228295,1752917432864,-460.0,0.00016578,2]
[373228296,1752917432875,-460.0,0.00016578,2]
[373228297,1752917432885,-461.49756378,0.00016578,2]
[373228298,1752917432896,-460.0,0.00016578,2]
[373228299,1752917432907,-460.0,0.00016578,2]
[373228300,1752917432917,-460.0,0.00016578,2]
[373228301,1752917432928,-460.0,0.00016578,2]
[373228302,1752917432938,-1180.02,0.00016578,2]
[373228303,1752917432949,-460.0,0.00016578,2]
[373228304,1752917432959,-460.0,0.00016578,2]
[373228305,1752917432970,-460.0,0.00016578,2]
[373228306,1752917432980,-460.0,0.00016578,2]
[373228307,1752917432991,-2879.82,0.00016578,2]
[373228308,1752917433001,-460.0,0.00016578,2]
[373228309,1752917433012,-461.16395765,0.00016578,2]
[373228310,1752917433022,-460.0,0.00016578,2]
[373228311,1752917433032,-500.0,0.00016578,2]
[373228312,1752917433042,-609.86799714,0.00016578,2]
[373228313,1752917433052,-500.0,0.00016578,2]
[373228314,1752917433063,-200.0,0.00016578,2]
[373228315,1752917433074,-500.0,0.00016578,2]
[373228316,1752917433084,-500.0,0.00016578,2]
[373228317,1752917433095,-500.0,0.00016578,2]
[373228318,1752917433106,-226.51441662,0.00016578,2]
[373228319,1752917433117,-500.0,0.00016578,2]
[373228320,1752917433128,-500.0,0.00016578,2]
[373228321,1752917433139,-579.5,0.00016578,2]
[373228322,1752917433149,-369.6,0.00016578,2]
[373228323,1752917433159,-500.0,0.00016578,2]
[373228324,1752917433170,-500.0,0.00016578,2]
[373228325,1752917433180,-194.0226775,0.00016578,2]
[373228326,1752917433190,-500.0,0.00016578,2]
[373228327,1752917433200,-500.0,0.00016578,2]
[373228328,1752917433211,-500.0,0.00016578,2]
[373228329,1752917433220,-500.0,0.00016578,2]
[373228330,1752917433231,-500.0,0.00016578,2]
[373228331,1752917433241,-500.0,0.00016578,2]
[373228332,1752917433251,-500.0,0.00016578,2]
[373228333,1752917433262,-500.0,0.00016578,2]
[373228334,1752917433272,-500.0,0.00016578,2]
[373228335,1752917433282,-500.0,0.00016578,2]
[373228336,1752917433292,-500.0,0.00016578,2]
[373228337,1752917433303,-500.0,0.00016578,2]
[373228338,1752917433313,-500.0,0.00016578,2]
[373228339,1752917433324,-500.0,0.00016578,2]
[373228340,1752917433334,-196.49944422,0.00016578,2]
[373228341,1752917433344,-500.0,0.00016578,2]
[373228342,1752917433354,-500.0,0.00016578,2]
[373228343,1752917433363,-500.0,0.00016578,2]
[373228344,1752917433374,-500.0,0.00016578,2]
[373228345,1752917433386,-500.0,0.00016578,2]
[373228346,1752917433396,-500.0,0.00016578,2]
[373228347,1752917433407,-500.0,0.00016578,2]
[373228348,1752917433420,-500.0,0.00016578,2]
[373228349,1752917433431,-500.0,0.00016578,2]
[373228350,1752917433441,-500.0,0.00016578,2]
[373228351,1752917433451,-500.0,0.00016578,2]
[373228352,1752917433461,-500.0,0.00016578,2]
[373228353,1752917433471,-500.0,0.00016578,2]
[373228354,1752917433481,-299.33585305,0.00016578,2]
[373228355,1752917433491,-500.0,0.00016578,2]
[373228356,1752917433502,-500.0,0.00016578,2]
[373228357,1752917433512,-460.0,0.00016579,2]
[373228358,1752917433522,-460.0,0.00016579,2]
[373228359,1752917433532,-218.94040013,0.00016579,2]
[373228360,1752917433542,-460.0,0.00016579,2]
[373228361,1752917433553,-460.0,0.00016579,2]
[373228362,1752917433564,-460.0,0.00016579,2]
[373228363,1752917433575,-460.0,0.00016579,2]
[373228364,1752917433584,-459.1755797,0.00016579,2]
[373228365,1752917433599,-0.8244203,0.00016579,2]
[373228366,1752917433609,-460.0,0.00016579,2]
[373228367,1752917433623,-620.4,0.00016579,2]
[373228368,1752917433635,-460.0,0.00016579,2]
[373228369,1752917433646,-460.0,0.00016579,2]
[373228370,1752917433656,-1523.27,0.00016579,2]
[373228371,1752917433667,-460.0,0.00016579,2]
[373228372,1752917433678,-460.0,0.00016579,2]
[373228373,1752917433689,-460.0,0.00016579,2]
[373228374,1752917433702,-1486.49,0.00016579,2]
[373228375,1752917433712,-460.0,0.00016579,2]
[373228376,1752917433723,-460.0,0.00016579,2]
[373228377,1752917433734,-62.41121013,0.00016579,2]
[373228382,1752917438440,-397.58878987,0.00016579,2]
[373228383,1752917438451,-460.0,0.00016579,2]
[373228384,1752917438461,-833.38,0.00016579,2]
[373228385,1752917438470,-747.55,0.00016579,2]
[373228386,1752917438480,-460.0,0.00016579,2]
[373228387,1752917438490,-460.0,0.00016579,2]
[373228388,1752917438499,-205.45351343,0.00016579,2]
[373228389,1752917438508,-460.0,0.00016579,2]
[373228390,1752917438518,-460.0,0.00016579,2]
[373228391,1752917438527,-460.0,0.00016579,2]
[373228392,1752917438536,-460.0,0.00016579,2]
[373228393,1752917438546,-460.0,0.00016579,2]
[373228394,1752917438555,-460.0,0.00016579,2]
[373228395,1752917438565,-460.0,0.00016579,2]
[373228396,1752917438574,-460.0,0.00016579,2]
[373228397,1752917438583,-460.0,0.00016579,2]
[373228398,1752917438593,-460.0,0.00016579,2]
[373228399,1752917438603,-246.82,0.00016579,2]
[373228400,1752917438613,-460.0,0.00016579,2]
[373228402,1752917438626,-460.0,0.00016579,2]
[373228403,1752917438638,-556.85,0.00016579,2]
[373228404,1752917438647,-460.0,0.0001658,2]
[373228405,1752917438656,-460.0,0.0001658,2]
[373228406,1752917438666,-460.0,0.0001658,2]
[373228407,1752917438675,-460.0,0.0001658,2]
[373228408,1752917438685,-460.0,0.0001658,2]
[373228409,1752917438694,-460.0,0.0001658,2]
[373228410,1752917438705,-460.0,0.0001658,2]
[373228411,1752917438715,-289.54640345,0.0001658,2]
[373228412,1752917438725,-460.0,0.0001658,2]
[373228413,1752917438734,-460.0,0.0001658,2]
[373228414,1752917438743,-460.0,0.0001658,2]